bitfinex/quotes_SOLUSD_20220105
["timestamp","ask_amount","ask_price","bid_price","bid_amount"]
[1641389641194,24.529,168.98,168.9,4.33306889]
[1641389641392,24.529,168.98,168.9,1.47846154]
[1641389641594,24.529,168.98,168.87,18.91426154]
[1641389642496,24.529,168.98,168.88,2.48932099]
[1641389642696,24.529,168.98,168.88,11.36502099]
[1641389642895,24.529,168.98,168.88,11.62502099]
[1641389643100,24.529,168.98,168.89,1.47846154]
[1641389643498,24.529,168.98,168.89,1.73846154]
[1641389643898,24.529,168.98,168.89,10.61366154]
[1641389644098,24.529,168.98,168.9,1.47846154]
[1641389644298,24.529,168.98,168.91,2.56487267]
[1641389644498,24.529,168.98,168.91,2.82487267]
[1641389644701,24.529,168.98,168.91,4.30333421]
[1641389646799,24.529,168.98,168.91,1.73846154]
[1641389647399,24.529,168.98,168.91,1.47846154]
[1641389648802,24.529,168.98,168.91,1.73846154]
[1641389653709,24.529,168.98,168.91,1.47846154]
[1641389654011,24.529,168.98,168.89,1.47846154]
[1641389654229,104.3021,168.98,168.84,7.56522785]
[1641389654831,104.8021,168.98,168.85,3.05067894]
[1641389655231,104.3021,168.98,168.85,4.52914048]
[1641389656435,104.3021,168.98,168.85,15.40118363]
[1641389656833,104.3021,168.98,168.85,23.96118363]
[1641389657033,104.3021,168.98,168.85,30.04794994]
[1641389657435,104.3021,168.98,168.88,8.8755]
[1641389657635,104.3021,168.98,168.89,30.52734254]
[1641389657835,104.3021,168.98,168.89,3.94077216]
[1641389658035,104.3021,168.98,168.89,2.72231062]
[1641389659636,0.06,168.98,168.89,4.20077216]
[1641389659837,0.06,168.98,168.9,8.56]
[1641389660035,0.06,168.98,168.9,8.82]
[1641389660237,0.06,168.98,168.91,1.47846154]
[1641389660437,0.06,168.98,168.92,2.97048964]
[1641389660837,0.06,168.98,168.92,3.23048964]
[1641389661039,0.06,168.98,168.93,1.47846154]
[1641389661439,0.06,168.98,168.93,1.73846154]
[1641389663242,0.06,168.98,168.93,1.47846154]
[1641389664541,0.06,168.98,168.93,1.73846154]
[1641389665643,0.06,168.98,168.93,27.94734551]
[1641389665842,0.06,168.98,168.94,1.47846154]
[1641389666042,0.06,168.98,168.95,2.17182698]
[1641389666445,0.06,168.98,168.95,2.43182698]
[1641389667748,0.06,168.98,168.95,7.96382698]
[1641389667947,0.06,168.98,168.95,9.44228852]
[1641389670251,0.06,168.98,168.95,3.91028852]
[1641389671553,0.06,168.98,168.95,1.73846154]
[1641389671755,0.06,168.98,168.93,34.76888397]
[1641389671955,0.06,168.98,168.92,1.47846154]
[1641389672152,0.06,168.98,168.91,8.56]
[1641389672354,23.8982,168.98,168.91,8.56]
[1641389672752,23.8982,168.98,168.91,11.17969476]
[1641389672984,23.8982,168.98,168.91,42.75894893]
[1641389673456,23.8982,168.98,168.91,43.01894893]
[1641389676262,0.06,168.98,168.91,43.01894893]
[1641389676660,0.06,168.98,168.91,53.63099208]
[1641389677763,0.06,168.98,168.93,8.8724]
[1641389678061,0.06,168.98,168.94,2.26819604]
[1641389678261,0.06,168.98,168.94,3.74665758]
[1641389678461,0.06,168.98,168.94,4.00665758]
[1641389678662,0.06,168.98,168.95,1.47846154]
[1641389679068,0.06,168.98,168.95,1.73846154]
[1641389679667,0.06,168.98,168.96,1.47846154]
[1641389680068,0.06,168.98,168.94,2.26819604]
[1641389681093,0.06,168.98,168.94,2.52819604]
[1641389681791,0.06,168.98,168.94,2.26819604]
[1641389683190,0.06,168.98,168.94,2.52819604]
[1641389686193,0.06,168.98,168.94,2.26819604]
[1641389686795,0.06,168.98,168.94,3.74665758]
[1641389687196,0.06,168.98,168.94,12.43445758]
[1641389687593,0.06,168.98,168.94,12.69445758]
[1641389687794,0.06,168.98,168.94,12.43445758]
[1641389688296,0.06,168.98,168.94,20.99445758]
[1641389689197,0.06,168.98,168.94,30.12695758]
[1641389689597,0.06,168.98,168.94,21.25445758]
[1641389690899,0.06,168.98,168.95,8.872]
[1641389691499,0.06,168.98,168.95,9.132]
[1641389692004,0.06,168.98,168.95,0.26]
[1641389692200,6.06430002,168.97,168.95,0.26]
[1641389692400,6.06430002,168.97,168.94,19.51599604]
[1641389692401,6.06430002,168.97,168.94,19.77599604]
[1641389692600,92.7,168.99,168.96,1.47846154]
[1641389692800,22.9334,169.04,168.97,2.30766548]
[1641389693000,79.2753,169.05,168.98,8.56]
[1641389693201,79.2753,169.05,168.99,8.8696]
[1641389693400,79.2753,169.05,169.0,2.28403045]
[1641389693600,79.2753,169.05,169.0,26.42768315]
[1641389693801,79.2753,169.05,169.0,27.90614469]
[1641389694000,79.2753,169.05,169.01,1.47846154]
[1641389694403,79.2753,169.05,169.01,10.29846154]
[1641389694801,79.2753,169.05,169.02,1.47846154]
[1641389695000,79.2753,169.05,169.03,2.6922984]
[1641389695201,24.9808,169.06,169.03,2.6922984]
[1641389695402,24.9808,169.06,169.03,2.9522984]
[1641389695701,24.9808,169.06,169.03,4.43075994]
[1641389695902,6.06430002,169.05,169.03,4.43075994]
[1641389696301,24.9808,169.06,169.03,1.73846154]
[1641389696602,24.9808,169.06,169.03,0.26]
[1641389697002,24.9808,169.06,169.01,8.82]
[1641389697402,24.9808,169.06,169.01,11.84901854]
[1641389698107,24.9808,169.06,169.01,8.82]
[1641389699914,24.9808,169.06,169.01,10.29846154]
[1641389700916,24.9808,169.06,169.01,8.82]
[1641389701518,24.9808,169.06,169.01,10.29846154]
[1641389701918,24.9808,169.06,169.01,8.82]
[1641389702118,24.9808,169.06,169.01,11.46830993]
[1641389702322,92.7,169.07,169.02,1.47846154]
[1641389702721,92.7,169.07,169.02,1.73846154]
[1641389704723,92.7,169.07,169.03,1.47846154]
[1641389705224,92.7,169.07,169.03,1.73846154]
[1641389705823,92.7,169.07,169.04,1.47846154]
[1641389706024,92.7,169.07,169.04,1.73846154]
[1641389707051,92.7,169.07,169.05,1.47846154]
[1641389707453,92.7,169.07,169.05,1.73846154]
[1641389707652,95.73219997,169.07,169.05,1.73846154]
[1641389707851,92.7,169.07,169.05,1.73846154]
[1641389708252,92.7,169.07,169.05,1.47846154]
[1641389708453,92.7,169.07,169.01,12.68677147]
[1641389710053,92.7,169.07,169.01,12.94677147]
[1641389710855,92.7,169.07,169.02,8.8684]
[1641389711055,92.7,169.07,169.01,12.68677147]
[1641389711254,92.7,169.07,169.03,1.47846154]
[1641389712256,92.7,169.07,169.03,1.73846154]
[1641389713056,92.7,169.07,169.04,1.47846154]
[1641389713457,92.7,169.07,169.04,1.73846154]
[1641389713857,92.7,169.07,169.05,1.47846154]
[1641389714258,92.7,169.07,169.05,1.73846154]
[1641389715661,92.7,169.07,169.05,0.26]
[1641389716060,92.7,169.07,169.03,9.1274]
[1641389716462,92.7,169.07,169.04,1.47846154]
[1641389716766,28.83211127,169.12,169.04,1.47846154]
[1641389716961,23.9171,169.11,169.04,1.73846154]
[1641389719069,23.9171,169.11,169.04,0.26]
[1641389719471,23.9171,169.11,169.02,8.8684]
[1641389719869,23.9171,169.11,169.01,1.47846154]
[1641389720070,23.9171,169.11,169.0,8.8508]
[1641389720669,23.9171,169.11,169.01,2.19911263]
[1641389722773,23.9171,169.11,169.01,3.67757417]
[1641389722978,23.9171,169.11,169.01,3.93757417]
[1641389725602,23.9171,169.11,169.01,3.67757417]
[1641389726905,23.9171,169.11,169.01,3.93757417]
[1641389729406,23.9171,169.11,169.02,8.56]
[1641389729805,23.9171,169.11,169.03,30.16186984]
[1641389730004,23.9171,169.11,169.03,30.42186984]
[1641389730209,23.9171,169.11,169.04,1.47846154]
[1641389730608,23.9171,169.11,169.04,0.26]
[1641389731408,29.63346992,169.1,169.01,2.45911263]
[1641389732307,29.63346992,169.1,169.02,1.47846154]
[1641389732607,29.63346992,169.1,169.02,1.73846154]
[1641389732807,29.63346992,169.1,169.02,0.26]
[1641389733412,29.63346992,169.1,169.01,2.45911263]
[1641389734011,29.63346992,169.1,169.02,1.47846154]
[1641389734311,92.7,169.14,169.02,17.4283]
[1641389734512,92.7,169.14,169.02,20.91050469]
[1641389734714,101.18187424,169.17,169.03,10.50037916]
[1641389734915,101.18187424,169.17,169.04,8.56]
[1641389735114,101.18187424,169.17,169.04,20.65050469]
[1641389735318,31.61760957,169.16,169.05,12.09050469]
[1641389735517,54.74740957,169.16,169.09,8.8648]
[1641389735715,54.74740957,169.16,169.1,11.44373576]
[1641389736116,54.74740957,169.16,169.1,11.70373576]
[1641389736317,23.1298,169.16,169.1,11.70373576]
[1641389736517,99.5178,169.17,169.1,11.70373576]
[1641389736751,99.5178,169.17,169.1,22.0464973]
[1641389739147,99.5178,169.17,169.11,8.8637]
[1641389739545,99.5178,169.17,169.11,1.73846154]
[1641389739945,99.5178,169.17,169.11,0.26]
[1641389740145,99.5178,169.17,169.11,1.73846154]
[1641389740445,99.5178,169.17,169.11,1.47846154]
[1641389740645,99.5178,169.17,169.11,0.26]
[1641389741348,99.5178,169.17,169.1,22.0460973]
[1641389742548,99.5178,169.17,169.1,13.1821973]
[1641389743049,99.5178,169.17,169.1,11.70373576]
[1641389743948,99.5178,169.17,169.1,11.44373576]
[1641389744648,99.5178,169.17,169.1,8.56]
[1641389745452,99.5178,169.17,169.1,8.82]
[1641389754563,99.5178,169.17,169.1,10.29846154]
[1641389759173,99.5178,169.17,169.1,10.03846154]
[1641389759570,99.5178,169.17,169.07,10.03846154]
[1641389759771,99.5178,169.17,169.07,1.47846154]
[1641389760571,99.5178,169.17,169.07,3.6868184]
[1641389761371,99.5178,169.17,169.07,1.73846154]
[1641389761571,99.5178,169.17,169.07,0.26]
[1641389761972,99.5178,169.17,169.05,29.94660469]
[1641389762171,99.5178,169.17,169.05,29.68660469]
[1641389762471,99.5178,169.17,169.06,2.20260461]
[1641389763494,99.5178,169.17,169.06,2.46260461]
[1641389763694,99.5778,169.17,169.06,2.46260461]
[1641389765196,99.5778,169.17,169.07,8.56]
[1641389765597,99.5778,169.17,169.08,1.47846154]
[1641389765996,99.5778,169.17,169.09,8.56]
[1641389766497,99.5778,169.17,169.09,8.82]
[1641389766798,99.5778,169.17,169.09,10.29846154]
[1641389767199,0.06,169.17,169.09,10.29846154]
[1641389767599,0.06,169.17,169.09,19.16326154]
[1641389768201,0.06,169.17,169.09,45.15467894]
[1641389768400,0.06,169.17,169.09,36.28987894]
[1641389769801,0.06,169.17,169.12,2.47632476]
[1641389770006,0.06,169.17,169.12,2.73632476]
[1641389770402,0.06,169.17,169.13,1.47846154]
[1641389770602,0.06,169.17,169.13,0.26]
[1641389771204,0.06,169.17,169.12,2.73632476]
[1641389772003,0.06,169.17,169.12,2.47632476]
[1641389772403,0.06,169.17,169.09,8.56]
[1641389773205,0.06,169.17,169.1,1.47846154]
[1641389773405,0.06,169.17,169.1,4.09096487]
[1641389773604,0.06,169.17,169.1,4.35096487]
[1641389774205,0.06,169.17,169.1,2.87250333]
[1641389774605,0.06,169.17,169.11,1.47846154]
[1641389775006,0.06,169.17,169.11,1.73846154]
[1641389775906,0.06,169.17,169.12,1.47846154]
[1641389776106,0.06,169.17,169.12,1.73846154]
[1641389776708,0.06,169.17,169.13,1.47846154]
[1641389777107,0.06,169.17,169.13,1.73846154]
[1641389778310,0.06,169.17,169.13,1.47846154]
[1641389779309,0.06,169.17,169.1,2.61250333]
[1641389779713,0.06,169.17,169.1,2.87250333]
[1641389779913,0.06,169.17,169.11,1.47846154]
[1641389780311,0.06,169.17,169.11,1.73846154]
[1641389782520,0.06,169.17,169.12,1.47846154]
[1641389782916,0.06,169.17,169.12,1.73846154]
[1641389784518,0.06,169.17,169.13,1.47846154]
[1641389784920,0.06,169.17,169.13,1.73846154]
[1641389786119,0.06,169.17,169.14,1.47846154]
[1641389786321,6.06430002,169.16,169.14,1.47846154]
[1641389786519,6.06430002,169.16,169.14,1.73846154]
[1641389788623,6.06430002,169.16,169.15,1.47846154]
[1641389789123,6.06430002,169.16,169.15,1.73846154]
[1641389789351,53.03210005,169.16,169.15,0.26]
[1641389789551,56.06430002,169.16,169.1,4.35096487]
[1641389789954,56.06430002,169.16,169.1,1.73846154]
[1641389790153,61.84230002,169.16,169.07,10.03846154]
[1641389790355,23.6233,169.15,169.07,1.47846154]
[1641389790554,23.6233,169.15,169.04,10.03846154]
[1641389790956,24.5029566,169.14,169.04,10.03846154]
[1641389791361,97.6342566,169.14,169.04,10.03846154]
[1641389794963,97.6342566,169.14,169.04,10.29846154]
[1641389795764,0.06,169.13,169.04,10.29846154]
[1641389800569,0.06,169.13,169.04,10.03846154]
[1641389801170,0.06,169.13,169.04,20.65050469]
[1641389801769,0.06,169.13,169.04,20.91050469]
[1641389809397,0.06,169.13,169.04,20.65050469]
[1641389810600,0.06,169.13,169.04,20.91050469]
[1641389814300,0.06,169.13,169.05,8.8665]
[1641389814500,0.06,169.13,169.07,29.19109948]
[1641389814702,0.06,169.13,169.07,37.75109948]
[1641389814902,0.06,169.13,169.07,38.01109948]
[1641389815103,0.06,169.13,169.09,3.00932047]
[1641389815502,0.06,169.13,169.1,1.47846154]
[1641389815706,6.06430002,169.12,169.1,1.47846154]
[1641389815904,6.06430002,169.12,169.1,1.73846154]
[1641389816310,73.1313,169.14,169.11,1.47846154]
[1641389816512,73.1313,169.14,169.11,1.73846154]
[1641389816911,6.06430002,169.13,169.11,1.73846154]
[1641389817112,73.1313,169.14,169.12,1.47846154]
[1641389817511,73.1313,169.14,169.12,1.73846154]
[1641389817912,73.1313,169.14,169.13,1.47846154]
[1641389818110,73.1313,169.14,169.13,1.73846154]
[1641389818311,6.06430002,169.14,169.13,1.73846154]
[1641389818510,6.06430002,169.14,169.13,1.47846154]
[1641389818713,6.06430002,169.14,169.07,1.47846154]
[1641389820015,6.06430002,169.14,169.07,1.73846154]
[1641389820712,6.06430002,169.14,169.07,1.47846154]
[1641389822215,6.06430002,169.14,169.07,1.73846154]
[1641389828928,6.12430002,169.14,169.07,1.73846154]
[1641389829425,6.12430002,169.14,169.07,1.47846154]
[1641389831629,6.12430002,169.14,169.07,1.73846154]
[1641389837373,6.12430002,169.14,169.07,1.47846154]
[1641389837767,6.12430002,169.14,169.05,1.47846154]
[1641389837969,83.68980002,169.14,169.05,1.47846154]
[1641389838971,83.68980002,169.14,169.05,1.73846154]
[1641389839370,83.68980002,169.14,169.06,1.47846154]
[1641389839571,83.68980002,169.14,169.06,1.73846154]
[1641389840271,83.68980002,169.14,169.07,12.09050469]
[1641389840471,83.68980002,169.14,169.07,12.35050469]
[1641389840671,83.68980002,169.14,169.08,1.47846154]
[1641389840874,6.12430002,169.14,169.08,10.03846154]
[1641389841072,0.06,169.14,169.08,20.91050469]
[1641389841273,0.06,169.14,169.1,2.49170627]
[1641389841473,0.06,169.14,169.11,8.56]
[1641389841675,0.06,169.14,169.11,10.03846154]
[1641389841872,0.06,169.14,169.11,10.29846154]
[1641389842072,0.06,169.14,169.12,1.47846154]
[1641389842473,0.06,169.14,169.12,0.26]
[1641389843078,0.06,169.14,169.07,0.26]
[1641389843482,0.06,169.14,169.06,11.66635938]
[1641389845178,0.06,169.14,169.06,3.10635938]
[1641389845777,0.06,169.14,169.06,2.84635938]
[1641389847383,0.06,169.14,169.06,3.10635938]
[1641389848185,0.06,169.14,169.06,0.26]
[1641389848584,0.06,169.14,169.04,10.87204315]
[1641389848985,24.1435,169.14,169.04,10.87204315]
[1641389849385,24.1435,169.14,169.04,13.85813633]
[1641389853008,24.1435,169.14,169.05,1.47846154]
[1641389853409,24.1435,169.14,169.05,1.73846154]
[1641389857516,24.1435,169.14,169.05,0.26]
[1641389857718,24.1435,169.14,169.04,10.87204315]
[1641389858415,24.1435,169.14,169.04,13.39162388]
[1641389858615,24.1435,169.14,169.05,1.47846154]
[1641389859014,24.1435,169.14,169.05,1.73846154]
[1641389860318,24.1435,169.14,169.05,1.47846154]
[1641389860619,32.7035,169.14,169.01,1.47846154]
[1641389860817,38.8305,169.14,169.0,19.46284315]
[1641389861417,38.8305,169.14,169.01,2.6990744]
[1641389861615,39.0905,169.14,169.01,2.6990744]
[1641389861816,39.5905,169.14,169.01,2.6990744]
[1641389863018,38.8305,169.14,169.01,2.6990744]
[1641389863219,39.3305,169.14,169.01,2.9590744]
[1641389865123,32.7035,169.14,169.01,2.9590744]
[1641389865322,33.2035,169.14,169.01,2.9590744]
[1641389865724,32.7035,169.14,169.01,2.9590744]
[1641389865921,33.2035,169.14,169.01,2.9590744]
[1641389866322,33.2035,169.14,169.02,1.47846154]
[1641389866522,33.2035,169.14,169.02,1.73846154]
[1641389866720,33.2035,169.14,169.02,0.26]
[1641389866923,32.7035,169.14,169.02,0.26]
[1641389867122,32.7035,169.14,169.02,1.73846154]
[1641389867323,32.7035,169.14,169.01,2.9590744]
[1641389867726,32.7035,169.14,169.02,1.47846154]
[1641389867925,32.7035,169.14,169.01,2.9590744]
[1641389868125,32.7035,169.14,169.02,0.26]
[1641389868326,32.7035,169.14,169.01,4.43753594]
[1641389872735,32.7035,169.14,169.01,19.42283594]
[1641389872933,32.7035,169.14,169.01,30.03487909]
[1641389873133,32.7035,169.14,169.02,31.50984037]
[1641389873533,32.7035,169.14,169.03,1.47846154]
[1641389873939,32.7035,169.14,169.03,1.73846154]
[1641389874837,32.7035,169.14,169.03,0.26]
[1641389875037,32.7035,169.14,169.01,61.6410762]
[1641389876637,32.7035,169.14,169.01,30.03487909]
[1641389876838,32.7035,169.14,169.01,19.42283594]
[1641389877240,31.7035,169.14,169.01,19.42283594]
[1641389877639,31.7635,169.14,169.01,19.42283594]
[1641389881372,31.7635,169.14,169.01,16.72376154]
[1641389882176,31.7635,169.14,169.01,15.2453]
[1641389882373,31.7635,169.14,169.02,2.36759987]
[1641389882573,31.7635,169.14,169.02,2.62759987]
[1641389882774,32.2635,169.14,169.02,2.62759987]
[1641389886179,32.2635,169.14,169.03,1.47846154]
[1641389886378,32.2635,169.14,169.02,2.62759987]
[1641389890782,31.2635,169.14,169.02,2.62759987]
[1641389893185,31.2635,169.14,169.02,4.10606141]
[1641389895986,31.2635,169.14,169.02,2.36759987]
[1641389897388,31.2635,169.14,169.02,2.62759987]
[1641389898017,31.2635,169.14,169.01,14.9853]
[1641389898188,38.0595,169.14,169.01,14.9853]
[1641389898392,38.0595,169.14,169.0,8.8508]
[1641389898988,38.0595,169.14,168.99,2.31215097]
[1641389899189,54.645,169.14,168.99,11.29535097]
[1641389899388,54.385,169.14,169.0,1.47846154]
[1641389899992,54.645,169.14,169.0,1.47846154]
[1641389900595,54.645,169.14,169.0,1.73846154]
[1641389902895,54.645,169.14,169.0,17.84356154]
[1641389902896,54.385,169.14,169.0,17.84356154]
[1641389903498,53.885,169.14,169.0,17.84356154]
[1641389903697,53.885,169.14,169.0,28.45560469]
[1641389903896,22.2035,169.14,169.01,8.56]
[1641389904096,22.2035,169.14,169.01,17.6885]
[1641389904397,22.2035,169.14,169.02,12.09050469]
[1641389904695,22.2035,169.14,169.02,20.65050469]
[1641389904897,22.2035,169.14,169.03,1.47846154]
[1641389905098,22.2035,169.14,169.04,8.56]
[1641389905523,22.2035,169.14,169.04,8.82]
[1641389906127,22.2035,169.14,169.05,2.64180027]
[1641389906524,22.2035,169.14,169.05,2.90180027]
[1641389908526,22.2035,169.14,169.05,11.46180027]
[1641389910926,22.2035,169.14,169.05,8.82]
[1641389912728,0.06,169.14,169.06,1.47846154]
[1641389913126,0.06,169.14,169.06,1.73846154]
[1641389913727,0.06,169.14,169.07,1.47846154]
[1641389914129,0.06,169.14,169.07,1.73846154]
[1641389914327,0.06,169.14,169.07,0.26]
[1641389914527,0.06,169.14,169.05,8.56]
[1641389914929,0.06,169.14,169.03,3.02200765]
[1641389915127,80.0289,169.14,169.03,3.02200765]
[1641389915729,80.0289,169.14,169.03,4.50046919]
[1641389917530,80.0289,169.14,169.03,4.76046919]
[1641389918029,80.0289,169.14,169.03,4.50046919]
[1641389920032,80.0289,169.14,169.03,4.76046919]
[1641389921433,80.0289,169.14,169.03,3.28200765]
[1641389921833,80.0289,169.14,169.03,4.76046919]
[1641389922233,80.0289,169.14,169.03,13.32046919]
[1641389923135,80.0289,169.14,169.03,11.84200765]
[1641389923535,80.0289,169.14,169.03,8.56]
[1641389924635,80.0289,169.14,169.03,10.99728714]
[1641389924836,80.0289,169.14,169.03,11.25728714]
[1641389925036,80.0289,169.14,169.03,8.56]
[1641389925840,80.0289,169.14,169.04,1.47846154]
[1641389926037,80.0289,169.14,169.05,2.48966538]
[1641389926439,80.0289,169.14,169.06,1.47846154]
[1641389926842,80.0289,169.14,169.06,1.73846154]
[1641389927240,80.0289,169.14,169.06,0.26]
[1641389927639,80.0289,169.14,169.05,2.74966538]
[1641389929241,80.0289,169.14,169.05,4.22812692]
[1641389929646,80.0289,169.14,169.05,2.74966538]
[1641389929840,80.0289,169.14,169.05,4.22812692]
[1641389930542,80.0289,169.14,169.05,2.74966538]
[1641389930942,80.0289,169.14,169.05,4.22812692]
[1641389931347,80.0289,169.14,169.05,2.74966538]
[1641389932545,80.0289,169.14,169.05,4.22812692]
[1641389939982,80.0289,169.14,169.06,31.18929767]
[1641389940184,80.0289,169.14,169.05,4.22812692]
[1641389940382,80.0289,169.14,169.06,10.03846154]
[1641389940582,80.0289,169.14,169.06,10.29846154]
[1641389943789,80.0289,169.14,169.06,10.03846154]
[1641389944589,80.0289,169.14,169.06,1.47846154]
[1641389944989,80.0289,169.14,169.06,1.73846154]
[1641389948692,80.0289,169.14,169.06,1.47846154]
[1641389948892,80.0289,169.14,169.06,10.03846154]
[1641389949895,80.0289,169.14,169.06,10.29846154]
[1641389951394,80.0289,169.14,169.06,1.73846154]
[1641389953795,80.0289,169.14,169.06,0.26]
[1641389953996,80.0289,169.14,169.05,3.05002365]
[1641389955299,80.0289,169.14,169.06,1.47846154]
[1641389955497,80.0289,169.14,169.06,1.73846154]
[1641389956101,80.0289,169.14,169.07,1.47846154]
[1641389956499,80.0289,169.14,169.07,1.73846154]
[1641389956500,79.0989,169.14,169.07,1.73846154]
[1641389959403,79.0989,169.14,169.07,1.47846154]
[1641389959600,87.6589,169.14,169.03,8.9928]
[1641389959802,79.0989,169.14,169.03,8.9928]
[1641389960000,79.5989,169.14,169.01,24.76954043]
[1641389960402,79.5989,169.14,169.01,27.29123395]
[1641389961403,79.5989,169.14,169.01,27.55123395]
[1641389962204,79.5989,169.14,169.01,2.78169352]
[1641389962602,79.5989,169.14,169.01,18.35239352]
[1641389962904,79.5989,169.14,168.98,9.0246]
[1641389962905,85.8569,169.14,168.98,9.0246]
[1641389963103,8.56,169.13,168.98,9.0246]
[1641389963303,8.56,169.13,168.97,8.56]
[1641389963505,22.7922,169.12,168.96,20.1756915]
[1641389963703,8.56,169.11,168.97,8.56]
[1641389963904,22.7922,169.12,168.98,2.78751881]
[1641389964403,8.56,169.11,168.98,2.78751881]
[1641389964805,9.06,169.11,168.98,2.78751881]
[1641389965409,23.6571,169.1,168.98,2.78751881]
[1641389965706,23.6571,169.1,168.99,8.56]
[1641389966107,23.6571,169.1,168.99,8.82]
[1641389966306,23.6571,169.1,168.99,18.6375987]
[1641389966706,23.6571,169.1,168.99,27.5072987]
[1641389966906,175.6682,169.14,168.99,18.6375987]
[1641389967106,198.2897,169.14,169.0,15.9613]
[1641389967409,124.7308,169.14,169.02,25.66509587]
[1641389967606,124.7308,169.14,169.04,2.76652658]
[1641389967807,124.7308,169.14,169.04,11.32652658]
[1641389968008,124.7308,169.14,169.04,11.58652658]
[1641389968206,101.7204,169.14,169.04,16.27452658]
[1641389968407,101.7204,169.14,169.04,26.57773588]
[1641389969707,92.7,169.17,169.04,26.57773588]
[1641389970112,121.7027,169.21,169.05,0.06]
[1641389970307,121.7027,169.21,169.06,8.56]
[1641389970513,121.7027,169.21,169.07,0.06]
[1641389970710,121.7027,169.21,169.08,8.56]
[1641389971009,121.7027,169.21,169.09,29.89803246]
[1641389971210,121.7027,169.21,169.1,8.56]
[1641389971611,121.7027,169.21,169.11,2.45455152]
[1641389971810,121.7027,169.21,169.11,11.01455152]
[1641389972011,121.7027,169.21,169.11,8.56]
[1641389972613,121.7027,169.21,169.11,8.82]
[1641389972911,121.7027,169.21,169.11,11.30997907]
[1641389976220,121.7027,169.21,169.11,8.82]
[1641389977419,121.7027,169.21,169.11,11.58630509]
[1641389977615,121.7027,169.21,169.11,2.76630509]
[1641389979115,121.7027,169.21,169.11,3.02630509]
[1641389981118,121.7027,169.21,169.11,0.26]
[1641389981519,121.7027,169.21,169.09,1.73846154]
[1641389981717,121.7027,169.21,169.09,10.29846154]
[1641389982120,121.7027,169.21,169.1,2.15162828]
[1641389982525,121.7027,169.21,169.1,3.89008982]
[1641389982719,121.7027,169.21,169.11,1.47846154]
[1641389983120,121.7027,169.21,169.11,1.73846154]
[1641389984221,121.7027,169.21,169.11,0.26]
[1641389984422,121.7027,169.21,169.1,2.41162828]
[1641389984624,121.7027,169.21,169.11,1.47846154]
[1641389984823,121.7027,169.21,169.1,2.41162828]
[1641389986023,121.7027,169.21,169.11,1.47846154]
[1641389986424,121.7027,169.21,169.11,1.73846154]
[1641389986835,121.7027,169.21,169.11,0.26]
[1641389987026,121.7027,169.21,169.1,2.41162828]
[1641389988667,121.7027,169.21,169.11,1.47846154]
[1641389988867,121.7027,169.21,169.1,2.41162828]
[1641389989867,121.7027,169.21,169.11,8.56]
[1641389990366,121.7027,169.21,169.11,8.82]
[1641389990969,121.7027,169.21,169.11,0.26]
[1641389991166,121.7027,169.21,169.11,8.56]
[1641389991566,121.7027,169.21,169.11,8.82]
[1641389992168,121.7027,169.21,169.11,0.26]
[1641389992568,121.7027,169.21,169.1,10.97162828]
[1641389992967,121.7027,169.21,169.1,12.45008982]
[1641389993374,122.2027,169.21,169.1,10.71162828]
[1641389994673,122.2027,169.21,169.1,2.41162828]
[1641389995273,121.7027,169.21,169.1,0.26]
[1641389995473,122.2027,169.21,169.08,9.2127]
[1641389995673,8.56,169.2,169.08,9.2127]
[1641389995874,0.5,169.2,169.06,8.56]
[1641389996277,9.06,169.2,169.07,2.96983458]
[1641389996981,0.5,169.2,169.07,2.96983458]
[1641389997379,130.7627,169.21,169.07,2.96983458]
[1641389997979,130.7627,169.21,169.07,4.70829612]
[1641390001204,130.7627,169.21,169.12,1.6312928]
[1641390001606,130.7627,169.21,169.12,1.8912928]